bitfinex/quotes_ETHUSD_20210401
["timestamp","ask_amount","ask_price","bid_price","bid_amount"]
[1617251730448,5.01,1925.9,1925.6,0.20616214]
[1617251730847,0.57803483,1926.0,1925.6,0.20616214]
[1617251731048,0.57803483,1926.0,1925.6,0.59616214]
[1617251731472,7.79161,1925.8,1925.6,0.59616214]
[1617251732675,8.35548683,1925.7,1925.6,0.20616214]
[1617251733903,8.35548683,1925.7,1925.3,0.39]
[1617251734100,8.35548683,1925.7,1925.3,0.28]
[1617251734101,2.0784004,1925.6,1925.3,0.28]
[1617251734500,2.0784004,1925.6,1924.7,2.16732294]
[1617251734699,5.01,1925.5,1924.9,0.52159824]
[1617251734900,7.083254,1925.5,1924.9,0.52159824]
[1617251735100,22.83560843,1925.5,1924.9,0.52159824]
[1617251735301,22.83560843,1925.5,1924.9,0.13159824]
[1617251735302,7.79636,1925.2,1924.9,0.13159824]
[1617251735703,7.79636,1925.2,1924.6,1.0]
[1617251735704,5.01,1925.0,1924.6,1.0]
[1617251735902,7.957054,1924.9,1924.6,1.0]
[1617251736101,10.8938,1924.9,1924.6,1.0]
[1617251736303,7.79754,1924.8,1924.6,1.0]
[1617251736531,7.79754,1924.8,1924.7,0.39]
[1617251737128,7.79754,1924.8,1924.6,1.0]
[1617251737731,21.29052,1924.9,1924.7,5.95]
[1617251737732,10.39672,1924.9,1924.7,5.95]
[1617251737931,16.7572948,1925.3,1924.8,2.463254]
[1617251737932,19.8988,1925.3,1924.8,2.463254]
[1617251738131,5.01,1925.3,1924.9,0.4]
[1617251738932,7.79497,1925.1,1924.9,0.4]
[1617251739155,7.79497,1925.1,1924.7,0.371]
[1617251739351,7.79497,1925.1,1924.8,0.4]
[1617251740955,7.79497,1925.1,1924.6,1.0]
[1617251741157,7.79497,1925.1,1924.7,2.073254]
[1617251741355,7.79497,1925.1,1924.7,2.760254]
[1617251741556,8.33725353,1925.1,1924.7,2.760254]
[1617251741799,8.33725353,1925.1,1924.7,0.687]
[1617251742197,8.33725353,1925.1,1924.7,2.760254]
[1617251742399,7.79497,1925.1,1924.7,2.760254]
[1617251742599,7.79497,1925.1,1924.8,0.38]
[1617251744001,8.14841389,1925.1,1924.8,0.38]
[1617251744402,8.14841389,1925.1,1924.7,2.360254]
[1617251744599,8.14841389,1925.1,1924.7,2.770254]
[1617251746000,8.14841389,1925.1,1924.7,2.073254]
[1617251746201,8.14841389,1925.1,1924.7,2.353254]
[1617251747026,8.14841389,1925.1,1924.7,2.743254]
[1617251747427,8.14841389,1925.1,1924.7,0.67]
[1617251747428,10.22166789,1925.1,1924.7,0.67]
[1617251747623,8.14841389,1925.1,1924.7,0.67]
[1617251749655,8.14841389,1925.1,1924.7,0.39]
[1617251749656,10.22742419,1925.1,1924.7,0.39]
[1617251749850,5.01,1924.9,1924.7,0.39]
[1617251750050,5.01,1924.9,1924.6,1.0]
[1617251750250,5.01,1925.0,1924.6,1.4]
[1617251750450,5.01,1925.0,1924.6,1.68]
[1617251750850,12.80525,1925.0,1924.8,0.39]
[1617251751250,7.79525,1925.0,1924.8,0.39]
[1617251751450,7.79525,1925.0,1924.8,1.41693322]
[1617251751649,7.79525,1925.0,1924.6,1.28]
[1617251751850,7.79525,1925.0,1924.7,0.4]
[1617251752052,7.79525,1925.0,1924.8,2.073254]
[1617251753477,7.79525,1925.0,1924.9,0.41]
[1617251753679,8.14788389,1925.1,1924.8,2.073254]
[1617251753878,5.01,1925.0,1924.7,2.073254]
[1617251754278,8.14788389,1925.1,1924.7,2.073254]
[1617251754478,8.14788389,1925.1,1924.7,2.463254]
[1617251754678,8.14788389,1925.1,1924.8,0.38]
[1617251756301,8.14788389,1925.1,1925.0,0.4]
[1617251756703,0.35344389,1925.1,1925.0,0.4]
[1617251760551,0.35344389,1925.1,1924.9,0.39]
[1617251762551,8.14792389,1925.1,1924.8,0.28]
[1617251762979,8.14792389,1925.1,1924.9,0.39]
[1617251763179,0.35344389,1925.1,1924.9,0.39]
[1617251764981,0.35344389,1925.1,1924.8,0.28]
[1617251765182,7.79485,1925.0,1924.8,0.28]
[1617251766407,7.79485,1925.0,1924.8,0.67]
[1617251766807,7.80698732,1925.0,1924.8,0.67]
[1617251769227,0.01213732,1925.0,1924.8,0.67]
[1617251770327,0.36558077,1925.1,1924.8,0.67]
[1617251770604,0.36558077,1925.1,1924.6,1.0]
[1617251770802,0.01213679,1925.0,1924.7,0.41]
[1617251772011,0.01213679,1925.0,1924.9,0.38]
[1617251772206,0.01213679,1925.0,1924.8,0.4]
[1617251772609,0.3655807,1925.1,1924.8,0.68]
[1617251772806,7.79484,1925.0,1924.8,0.68]
[1617251773006,0.3655807,1925.1,1924.8,0.68]
[1617251774810,0.3655807,1925.1,1924.8,0.63]
[1617251776207,8.1598707,1925.1,1924.8,0.63]
[1617251777408,8.1598707,1925.1,1924.8,0.28]
[1617251778208,2.073254,1925.0,1924.8,0.28]
[1617251778429,1.2540807,1925.1,1924.8,0.28]
[1617251778627,0.01213671,1925.0,1924.6,1.0]
[1617251778829,7.79606,1924.8,1924.6,1.0]
[1617251779031,16.03106,1924.8,1924.6,1.0]
[1617251780831,16.04319778,1924.8,1924.6,1.0]
[1617251781256,18.12229808,1924.8,1924.6,1.0]
[1617251781457,10.32623808,1924.8,1924.6,1.4]
[1617251781657,7.79635,1924.7,1924.6,1.4]
[1617251783056,7.79635,1924.7,1924.6,1.0]
[1617251784683,13.98285,1924.7,1924.6,1.0]
[1617251786085,13.98891661,1924.7,1924.6,1.0]
[1617251786501,13.98285,1924.7,1924.6,1.0]
[1617251787903,13.98891656,1924.7,1924.6,1.0]
[1617251788604,13.98285,1924.7,1924.6,1.0]
[1617251790450,14.33541788,1924.7,1924.6,1.0]
[1617251792056,14.33541788,1924.7,1924.6,0.95]
[1617251792856,14.33541788,1924.7,1924.6,1.35]
[1617251793056,6.53906788,1924.7,1924.6,1.35]
[1617251793454,6.53906788,1924.7,1924.6,0.95]
[1617251793455,8.61232188,1924.7,1924.6,0.95]
[1617251793656,16.40839188,1924.7,1924.6,0.95]
[1617251793855,15.40839188,1924.7,1924.6,0.95]
[1617251794682,17.03680467,1924.7,1924.6,0.95]
[1617251794882,29.11054136,1924.7,1924.6,0.95]
[1617251795082,29.65295799,1924.7,1924.6,0.95]
[1617251795282,30.85295799,1924.7,1924.6,0.95]
[1617251795484,32.34005092,1924.7,1924.6,0.95]
[1617251795683,32.32186147,1924.7,1924.6,0.95]
[1617251796085,40.97186147,1924.7,1924.6,0.85]
[1617251796910,42.38516229,1924.7,1924.6,0.85]
[1617251797108,40.7567495,1924.7,1924.6,0.85]
[1617251798308,32.1067495,1924.7,1924.6,0.85]
[1617251798709,31.1067495,1924.7,1924.6,0.85]
[1617251798910,30.7167495,1924.7,1924.6,0.85]
[1617251799110,31.1167495,1924.7,1924.6,0.85]
[1617251799531,31.1167495,1924.7,1924.1,1.0]
[1617251799732,7.932,1924.3,1924.1,1.0]
[1617251799932,14.9121276,1924.2,1924.1,1.0]
[1617251800131,19.92819254,1924.2,1924.1,1.0]
[1617251800332,28.10051,1924.2,1924.1,1.0]
[1617251800531,41.86232651,1924.2,1924.1,1.0]
[1617251800731,35.71051,1924.2,1924.1,1.0]
[1617251801131,27.71051,1924.2,1924.1,1.0]
[1617251801731,36.91051,1924.2,1924.1,1.0]
[1617251802564,37.29051,1924.2,1924.1,1.0]
[1617251803762,36.29051,1924.2,1924.1,1.0]
[1617251804363,35.91051,1924.2,1924.1,1.0]
[1617251805581,22.70051,1924.2,1924.1,1.0]
[1617251805782,23.24310834,1924.2,1924.1,1.0]
[1617251806384,8.34310834,1924.2,1924.1,1.0]
[1617251806983,13.89310834,1924.2,1924.1,1.0]
[1617251807188,8.34310834,1924.2,1924.1,1.0]
[1617251807608,0.54259834,1924.2,1924.1,1.0]
[1617251807808,0.00603194,1924.6,1924.1,1.0]
[1617251808007,0.00603194,1924.6,1924.4,0.39]
[1617251808208,5.51123951,1924.7,1924.4,9.648]
[1617251808409,7.79767,1924.5,1924.4,9.648]
[1617251808809,6.79767,1924.5,1924.4,9.258]
[1617251809008,14.54767,1924.5,1924.4,9.258]
[1617251809609,14.81891613,1924.5,1924.4,9.258]
[1617251809812,22.81891613,1924.5,1924.4,9.258]
[1617251810041,14.81891613,1924.5,1924.4,9.258]
[1617251810241,19.40328935,1924.5,1924.4,9.258]
[1617251810841,21.03091067,1924.5,1924.4,9.258]
[1617251811040,22.11597393,1924.5,1924.1,1.0]
[1617251811243,5.01,1924.3,1924.1,1.0]
[1617251811443,7.9160719,1924.2,1924.1,1.0]
[1617251811641,12.9260719,1924.2,1924.1,1.0]
[1617251812042,20.7264419,1924.2,1924.1,1.0]
[1617251813859,12.81037,1924.2,1924.1,1.0]
[1617251816316,13.3529504,1924.2,1924.1,1.0]
[1617251816515,13.3529504,1924.2,1924.1,1.41]
[1617251816516,13.70391157,1924.2,1924.1,1.41]
[1617251817114,14.78902698,1924.2,1924.1,1.41]
[1617251818332,13.70391157,1924.2,1924.1,1.41]
[1617251818733,12.70391157,1924.2,1924.1,1.41]
[1617251822139,12.70391157,1924.2,1924.1,1.0]
[1617251823757,11.70391157,1924.2,1924.1,2.02613675]
[1617251824157,11.70391157,1924.2,1924.1,1.0]
[1617251825158,11.97519853,1924.2,1924.1,1.0]
[1617251825812,16.0441334,1924.2,1924.1,1.0]
[1617251828818,15.0441334,1924.2,1924.1,1.0]
[1617251829018,13.0341334,1924.2,1924.1,1.0]
[1617251830826,13.0341334,1924.2,1924.1,1.39]
[1617251831060,1.16482853,1924.2,1924.1,1.39]
[1617251832660,1.16482853,1924.2,1924.1,1.0]
[1617251833259,8.96312853,1924.2,1924.1,1.4]
[1617251833880,7.96312853,1924.2,1924.1,1.4]
[1617251834283,7.7983,1924.2,1924.1,1.4]
[1617251834885,7.7983,1924.2,1924.1,1.0]
[1617251838691,12.8083,1924.2,1924.1,1.0]
[1617251838908,11.8083,1924.2,1924.1,1.0]
[1617251839708,12.35088427,1924.2,1924.1,1.0]
[1617251839909,12.41562039,1924.2,1924.1,1.0]
[1617251842539,12.57859526,1924.2,1924.1,1.0]
[1617251845965,7.56859526,1924.2,1924.1,1.0]
[1617251846168,7.56859526,1924.2,1924.1,1.4]
[1617251846786,7.02601099,1924.2,1924.1,1.0]
[1617251847191,7.56857263,1924.2,1924.1,1.0]
[1617251848389,7.56857263,1924.2,1924.1,1.39]
[1617251848390,0.77027263,1924.2,1924.1,1.39]
[1617251849635,0.22771099,1924.2,1924.1,1.39]
[1617251850232,8.02587099,1924.2,1924.1,1.39]
[1617251850833,7.02587099,1924.2,1924.1,1.39]
[1617251852437,7.02587099,1924.2,1924.1,1.0]
[1617251853446,8.17287099,1924.2,1924.1,1.0]
[1617251853640,10.21697163,1924.2,1924.1,1.0]
[1617251853839,8.17287099,1924.2,1924.1,1.0]
[1617251854039,27.83367099,1924.2,1924.1,1.0]
[1617251855265,28.10496364,1924.2,1924.1,1.0]
[1617251855465,28.6475483,1924.2,1924.1,1.0]
[1617251855867,27.6475483,1924.2,1924.1,1.0]
[1617251857487,19.6475483,1924.2,1924.1,1.0]
[1617251857689,27.6475483,1924.2,1924.1,1.0]
[1617251857889,19.6475483,1924.2,1924.1,1.0]
[1617251858089,14.6375483,1924.2,1924.1,1.0]
[1617251858689,14.4905483,1924.2,1924.1,1.0]
[1617251859492,27.5005483,1924.2,1924.1,1.0]
[1617251860947,26.5005483,1924.2,1924.1,1.0]
[1617251863956,32.26236398,1924.2,1924.1,1.0]
[1617251864156,26.5005483,1924.2,1924.1,1.0]
[1617251865966,25.5005483,1924.2,1924.1,1.0]
[1617251866362,18.4807212,1924.2,1923.7,0.39]
[1617251866563,18.4807212,1924.2,1923.8,0.588]
[1617251866962,24.24253681,1924.2,1923.8,0.588]
[1617251867165,16.77326,1924.0,1923.6,1.66]
[1617251867363,16.77326,1924.0,1923.6,1.23]
[1617251867364,5.01,1923.9,1923.6,1.23]
[1617251867788,5.01,1923.8,1923.6,1.23]
[1617251867986,5.5526131,1923.8,1923.6,1.23]
[1617251868584,0.5426131,1923.8,1923.6,1.23]
[1617251868785,5.5526131,1923.8,1923.6,1.23]
[1617251868984,0.5426131,1923.8,1923.6,1.23]
[1617251869186,10.4232189,1923.8,1923.6,1.62]
[1617251869386,2.6227989,1923.8,1923.6,1.62]
[1617251870191,2.6227989,1923.8,1923.6,1.23]
[1617251870418,7.8002,1923.7,1923.6,1.23]
[1617251870819,6.8002,1923.7,1923.6,1.23]
[1617251871019,6.8002,1923.7,1923.6,1.63]
[1617251871620,6.8002,1923.7,1923.6,1.23]
[1617251872020,6.8002,1923.7,1923.6,2.84]
[1617251873238,6.8002,1923.7,1923.6,0.95]
[1617251875861,5.8002,1923.7,1923.6,0.95]
[1617251876462,5.8002,1923.7,1923.6,1.36]
[1617251876662,5.8002,1923.7,1923.6,1.64]
[1617251876870,5.8002,1923.7,1923.6,1.23]
[1617251878070,2.0801858,1923.8,1923.6,1.23]
[1617251878303,2.0801858,1923.8,1923.6,1.63]
[1617251878504,9.8795558,1923.8,1923.6,1.63]
[1617251879104,2.0801858,1923.8,1923.6,1.63]
[1617251879304,2.0801858,1923.8,1923.6,0.95]
[1617251879508,2.0801858,1923.8,1923.6,1.23]
[1617251879705,7.79961,1923.7,1923.6,1.23]
[1617251879906,2.0801858,1923.8,1923.6,1.23]
[1617251880708,9.8795458,1923.8,1923.6,1.23]
[1617251880910,8.8795458,1923.8,1923.6,1.61]
[1617251881311,1.0801858,1923.8,1923.6,1.61]
[1617251881713,5.01,1923.7,1923.6,1.23]
[1617251881912,12.80939,1923.7,1923.6,1.23]
[1617251882111,7.79939,1923.7,1923.6,1.23]
[1617251884139,7.79939,1923.7,1923.6,13.97]
[1617251884339,1.78291415,1923.8,1923.6,15.17]
[1617251884540,1.0801858,1923.8,1923.7,8.26]
[1617251884740,1.0801858,1923.8,1923.7,9.754]
[1617251884938,1.5167687,1923.9,1923.7,9.754]
[1617251885139,1.5167687,1923.9,1923.8,6.34]
[1617251885338,1.5167687,1923.9,1923.8,7.54]
[1617251885539,0.97417191,1923.9,1923.8,10.34]
[1617251885739,0.97417191,1923.9,1923.8,10.62]
[1617251885943,11.73531191,1924.0,1923.8,2.8]
[1617251886166,11.73531191,1924.0,1923.6,1.33]
[1617251886167,5.01,1923.9,1923.6,1.33]
[1617251886367,5.01,1923.8,1923.7,0.842]
[1617251886567,6.10580598,1924.0,1923.6,1.33]
[1617251886568,6.10580598,1924.0,1923.6,0.95]
[1617251886767,6.10580598,1924.0,1923.6,1.62]
[1617251886969,7.79977,1923.8,1923.6,1.62]
[1617251887368,9.8797761,1923.8,1923.6,1.62]
[1617251887568,2.0800061,1923.8,1923.7,0.41]
[1617251888571,9.8797361,1923.8,1923.7,0.41]
[1617251888789,10.13556891,1923.8,1923.7,0.41]
[1617251889189,10.13556891,1923.8,1923.6,1.23]
[1617251889389,7.53610891,1923.8,1923.6,1.23]
[1617251889589,7.80008,1923.7,1923.6,1.23]
[1617251890994,6.80008,1923.7,1923.6,1.64]
[1617251892412,6.80008,1923.7,1923.6,1.23]
[1617251895857,5.80008,1923.7,1923.6,1.23]
[1617251896664,5.80008,1923.7,1923.6,0.95]
[1617251897865,5.80008,1923.7,1923.6,0.9]
[1617251900195,5.95221031,1923.7,1923.6,0.9]
[1617251900396,5.80008,1923.7,1923.6,0.9]
[1617251900596,5.95231666,1923.7,1923.6,0.9]
[1617251900797,5.80008,1923.7,1923.6,0.9]
[1617251903620,13.80008,1923.7,1923.6,0.9]
[1617251904019,14.34274545,1923.7,1923.6,0.9]
[1617251904224,20.10456309,1923.7,1923.6,0.9]
[1617251904441,14.34274545,1923.7,1923.6,0.9]
[1617251905673,16.33244545,1923.7,1923.6,0.9]
[1617251906271,8.33244545,1923.7,1923.6,0.9]
[1617251906472,16.33244545,1923.7,1923.6,0.9]
[1617251907273,8.33244545,1923.7,1923.6,0.9]
[1617251907475,6.34274545,1923.7,1923.6,0.9]
[1617251910294,6.34274545,1923.7,1923.6,1.18]
[1617251910494,5.80008,1923.7,1923.6,1.18]
[1617251913526,8.21080738,1923.7,1923.6,0.9]
[1617251913726,8.21080738,1923.7,1923.1,1.0]
[1617251913727,34.95,1923.6,1923.1,1.0]
[1617251913927,8.21957662,1923.5,1923.1,1.0]
[1617251914127,18.45,1923.3,1923.0,0.082091]
[1617251914326,2.0294291,1923.2,1923.0,0.082091]
[1617251914526,15.8,1923.1,1922.6,1.0]
[1617251914730,0.063,1922.9,1922.6,1.0]
[1617251914951,0.012126,1922.7,1922.6,1.0]
[1617251915152,7.816646,1922.7,1922.6,1.0]
[1617251916554,9.86424073,1922.7,1922.6,1.0]
[1617251916755,14.8560751,1922.7,1922.6,1.0]
[1617251916954,12.84481086,1922.7,1922.6,1.0]
[1617251917154,12.83268486,1922.7,1922.6,1.0]
[1617251917357,12.84479479,1922.7,1922.6,1.0]
[1617251917571,12.83268486,1922.7,1922.6,1.0]
[1617251919175,12.84479545,1922.7,1922.6,1.0]
[1617251919375,12.83268486,1922.7,1922.6,1.0]
[1617251920196,13.08553549,1922.7,1922.6,1.0]
[1617251920796,13.09764463,1922.7,1922.6,1.0]
[1617251921196,13.07947977,1922.7,1922.6,1.0]
[1617251921396,21.0976418,1922.7,1922.6,1.0]
[1617251921598,13.08553266,1922.7,1922.6,1.0]
[1617251921795,21.08553266,1922.7,1922.6,1.0]
[1617251922396,13.08553266,1922.7,1922.6,1.0]
[1617251922857,21.08553266,1922.7,1922.6,1.0]
[1617251923055,22.09163266,1922.7,1922.6,1.0]
[1617251923658,14.08557724,1922.7,1922.6,1.0]
[1617251925058,13.06737063,1922.7,1922.6,1.67]
[1617251925262,0.25285063,1922.7,1922.6,1.67]
[1617251925659,0.25285063,1922.7,1922.6,22.504]
[1617251925858,0.25285063,1922.7,1922.6,26.324]
[1617251926059,0.25285063,1922.7,1922.6,42.51951]
[1617251926259,0.25285063,1922.7,1922.6,47.52951]
[1617251926458,0.00602866,1923.5,1922.8,0.336]
[1617251926658,0.00602866,1923.5,1923.3,0.4]
[1617251926859,3.90635908,1923.6,1923.3,10.4676]
[1617251929676,0.00602908,1923.6,1923.3,10.5236]
[1617251930722,0.00602908,1923.6,1923.5,0.38]
[1617251930923,7.80633908,1923.6,1923.5,0.38]
[1617251931525,7.80633908,1923.6,1923.0,1.2]
[1617251931724,7.80633908,1923.6,1923.3,0.4]
[1617251931923,7.80633908,1923.6,1923.3,0.414]
[1617251932525,7.80633908,1923.6,1923.3,0.4]
[1617251932725,7.80633908,1923.6,1923.3,0.68]
[1617251934731,7.80633908,1923.6,1923.3,0.743]
[1617251938975,7.81835804,1923.6,1923.3,0.743]
[1617251939175,3.90065,1923.5,1923.3,0.343]
[1617251939376,3.9066586,1923.5,1923.1,1.11]
[1617251939576,3.9696586,1923.5,1923.1,1.11]
[1617251939976,8.9796586,1923.5,1923.1,1.11]
[1617251940181,3.9696586,1923.5,1923.1,1.11]
[1617251940377,3.90082,1923.4,1923.2,0.41]
[1617251940579,3.90082,1923.4,1923.3,0.39]
[1617251940780,0.0060086,1923.5,1923.3,0.39]
[1617251940983,5.01601001,1923.6,1923.3,0.67]
[1617251941394,5.01601001,1923.6,1923.4,0.4]
[1617251941595,3.97507001,1923.7,1923.5,2.4094291]
[1617251941596,3.90606294,1923.7,1923.5,2.4094291]
[1617251941794,3.90606294,1923.7,1923.5,2.6964291]
[1617251941998,0.00601294,1923.7,1923.5,0.667]
[1617251942194,0.00601294,1923.7,1923.6,9.8394291]
[1617251942395,0.00601294,1923.7,1923.6,11.2795291]
[1617251942796,0.00601294,1923.7,1923.6,9.2501]
[1617251942995,4.08680964,1923.8,1923.6,9.2501]
[1617251943194,4.07478375,1923.8,1923.6,9.5371]
[1617251944020,3.07478375,1923.8,1923.7,0.38]
[1617251944217,3.08681234,1923.8,1923.6,9.5371]
[1617251944416,0.01202859,1923.8,1923.6,9.5371]
[1617251944618,12.82090014,1923.9,1923.6,9.5371]
[1617251944823,7.81090014,1923.9,1923.6,9.5371]
[1617251946227,0.29241625,1923.8,1923.6,9.5371]
[1617251946443,8.09177625,1923.8,1923.6,9.5371]
[1617251947246,5.01,1923.7,1923.3,5.1821]
[1617251947443,5.01,1923.7,1923.4,2.8872223]
[1617251947645,8.1038052,1923.8,1923.4,2.8872223]
[1617251948043,8.1038052,1923.8,1923.5,0.152]
[1617251948243,8.09177625,1923.8,1923.5,0.152]
[1617251948445,8.10381181,1923.8,1923.5,0.152]
[1617251949073,0.01203003,1923.7,1923.6,0.4]
[1617251949273,3.91185003,1923.7,1923.6,0.4]
[1617251949473,3.89982,1923.7,1923.6,0.4]
[1617251951508,4.06283723,1923.7,1923.5,0.152]
[1617251951704,4.06283723,1923.7,1923.5,0.542]
[1617251953106,11.86273723,1923.7,1923.3,2.0292223]
[1617251953306,11.87476872,1923.7,1923.3,2.7552223]
[1617251953504,11.86273723,1923.7,1923.3,2.7552223]
[1617251953706,11.8747673,1923.7,1923.3,2.7552223]
[1617251954108,10.86273723,1923.7,1923.5,0.39]
[1617251954342,0.1,1923.6,1923.5,0.39]
[1617251955342,0.1,1923.6,1923.3,2.3302223]
[1617251955545,0.1,1923.6,1923.4,0.39]
[1617251955743,0.1,1923.6,1923.5,2.01889698]
[1617251956143,0.1,1923.6,1923.5,2.40889698]
[1617251957943,0.1,1923.6,1923.5,0.39]
[1617251958943,9.96266723,1923.7,1923.5,0.39]
[1617251959145,9.96266723,1923.7,1923.6,2.01889698]
[1617251959347,9.96266723,1923.7,1923.5,0.39]
[1617251959571,6.06288723,1923.7,1923.3,2.01780522]
[1617251959773,6.06288723,1923.7,1923.3,0.287]
[1617251959971,7.80038,1923.5,1923.3,0.287]
[1617251960373,7.80038,1923.5,1923.2,0.58309522]
[1617251960572,7.80038,1923.5,1923.2,0.86309522]
[1617251961572,7.80038,1923.5,1923.2,0.46309522]
[1617251962201,13.7815725,1923.5,1923.2,0.46309522]
[1617251962402,5.9811925,1923.5,1923.2,0.46309522]
[1617251964004,4.9811925,1923.5,1923.2,0.85309522]
[1617251964203,7.80128,1923.4,1923.2,0.85309522]
[1617251965428,7.80128,1923.4,1923.2,0.46309522]
[1617251969045,6.80128,1923.4,1923.2,0.87309522]
[1617251970674,2.0804125,1923.5,1923.2,0.87309522]
[1617251970874,7.0904125,1923.5,1923.2,0.87309522]
[1617251971074,14.8906725,1923.5,1923.2,0.87309522]
[1617251971874,9.8806725,1923.5,1923.2,0.87309522]
[1617251972275,7.80071,1923.4,1923.2,0.87309522]
[1617251974105,6.80071,1923.4,1923.2,0.87309522]
[1617251974703,6.80071,1923.4,1923.2,0.59309522]
[1617251975106,6.81270148,1923.4,1923.2,0.18309522]
[1617251975321,6.80071,1923.4,1923.2,0.18309522]
[1617251975523,6.81270125,1923.4,1923.2,0.18309522]
[1617251976122,6.80071,1923.4,1923.2,0.18309522]
[1617251976523,6.81269967,1923.4,1923.2,0.18309522]
[1617251976721,6.80071,1923.4,1923.2,0.18309522]
[1617251977122,17.50392214,1923.5,1923.2,0.41]
[1617251977323,0.16304265,1923.4,1923.2,0.69]
[1617251978351,0.16304265,1923.4,1923.3,2.01754014]
[1617251978751,0.16304265,1923.4,1923.3,2.70754014]
[1617251978950,3.09333675,1923.6,1923.3,2.70754014]
[1617251979152,2.79333675,1923.6,1923.5,0.4]
[1617251979750,0.01798446,1923.6,1923.5,0.4]
[1617251980572,0.01798446,1923.6,1923.5,1.03873687]
[1617251980773,0.01798446,1923.6,1923.3,9.81694014]
[1617251980974,0.01798446,1923.6,1923.4,0.39]
[1617251982277,0.01798446,1923.6,1923.3,12.89794014]
[1617251982676,0.01798446,1923.6,1923.3,13.28794014]
[1617251984099,7.79957,1923.7,1923.5,0.38]
[1617251984100,6.81755446,1923.7,1923.5,0.38]
[1617251985297,6.81755446,1923.7,1923.4,0.28]
[1617251985503,9.45241981,1923.8,1923.6,0.4]
[1617251985923,5.55265981,1923.8,1923.6,0.68]
[1617251986127,5.55265981,1923.8,1923.6,7.549]
[1617251986923,0.54265981,1923.8,1923.6,7.549]
[1617251987324,0.54265981,1923.8,1923.6,7.149]
[1617251987524,5.55265981,1923.8,1923.6,7.149]
[1617251987725,5.01,1923.7,1923.6,7.149]
[1617251988326,0.54265981,1923.8,1923.6,7.149]
[1617251988550,0.44265981,1923.8,1923.6,7.539]
[1617251988749,5.45265981,1923.8,1923.6,7.539]
[1617251989150,7.79933,1923.8,1923.6,7.539]
[1617251990152,7.79933,1923.8,1923.6,7.149]
[1617251990953,7.79933,1923.8,1923.6,6.869]
[1617251991180,5.01,1923.7,1923.5,0.15717252]
[1617251991779,5.031,1923.8,1923.5,0.15717252]
[1617251992380,3.90003,1923.7,1923.5,0.15717252]
[1617251992580,8.91003,1923.7,1923.5,0.15717252]
[1617251992780,10.9901075,1923.7,1923.5,0.15717252]
[1617251993798,13.7794675,1923.7,1923.5,0.15717252]
[1617251994797,17.8481549,1923.7,1923.5,0.15717252]
[1617251994998,17.7981549,1923.7,1923.5,0.15717252]
[1617251996632,9.9987949,1923.7,1923.5,0.15717252]
[1617251997437,7.79987,1923.6,1923.5,0.15717252]
[1617251998236,7.9187174,1923.7,1923.5,0.15717252]
[1617251999275,15.7183374,1923.7,1923.5,0.15717252]
[1617251999680,7.9187174,1923.7,1923.5,0.15717252]
[1617252000276,7.80039,1923.6,1923.5,0.15717252]
[1617252001877,7.82139,1923.6,1923.2,0.69]
[1617252002076,2.080263,1923.5,1923.2,0.28]
[1617252002676,7.090263,1923.5,1923.2,0.28]
[1617252002876,7.80099,1923.4,1923.2,0.28]
[1617252003276,7.80099,1923.4,1923.0,0.17698347]
[1617252003476,7.94099,1923.4,1923.0,0.45698347]
[1617252004079,5.01,1923.2,1923.0,0.17698347]
[1617252004297,5.01,1923.3,1922.6,1.49406894]
[1617252004497,0.021,1923.2,1922.7,0.455]
[1617252005098,7.80231,1923.1,1922.7,0.455]
[1617252005298,7.80231,1923.1,1922.7,0.315]
[1617252005499,7.80231,1923.1,1922.7,0.705]
[1617252005699,7.80231,1923.1,1922.9,0.4]
[1617252005899,7.80231,1923.1,1922.9,0.68]
[1617252006504,7.80231,1923.1,1922.9,0.28]
[1617252007325,5.981776,1923.2,1922.9,0.28]
[1617252007526,3.90116,1923.2,1922.9,0.28]
[1617252008326,7.80192,1923.1,1922.9,0.28]
[1617252010149,11.87186629,1923.1,1922.9,0.28]
[1617252010349,4.06994629,1923.1,1922.9,0.28]
[1617252010549,3.90116,1923.2,1922.9,0.28]
[1617252010748,11.70302,1923.2,1922.9,0.28]
[1617252010948,15.77298885,1923.2,1922.9,0.28]
[1617252011351,7.97112885,1923.2,1922.9,0.28]
[1617252011754,7.80265,1923.1,1922.6,1.17142741]
[1617252011948,3.90145,1923.0,1922.7,0.28]
[1617252012781,8.91145,1923.0,1922.6,1.0]
[1617252013181,7.80316,1922.8,1922.6,1.0]
[1617252014800,7.80316,1922.8,1922.6,1.39]
[1617252015002,7.80271,1922.9,1922.6,1.39]
[1617252018431,7.80271,1922.9,1922.6,1.0]
[1617252018432,11.70469,1922.9,1922.6,1.0]
[1617252018631,5.81818,1922.9,1922.6,1.0]
[1617252019433,5.01,1922.7,1922.6,1.0]
[1617252020253,7.80418,1922.7,1922.6,1.0]
[1617252020453,0.54288302,1922.8,1922.6,1.0]
[1617252021853,0.54288302,1922.8,1922.6,1.4]
[1617252022682,8.41357581,1923.0,1922.6,1.4]
[1617252022883,8.41357581,1923.0,1922.7,0.357]
[1617252023082,16.21594581,1923.0,1922.7,0.357]
[1617252023682,15.9445042,1923.0,1922.7,0.357]
[1617252024484,7.80237,1923.0,1922.7,0.767]
[1617252025710,7.80237,1923.0,1922.7,0.357]
[1617252025911,5.01,1922.8,1922.6,1.28]